fUSD/lending_fUSD_20240426
["ID","MTS","AMOUNT","RATE_DAILY","PERIOD"]
[323606215,1714108249462,-500.0,0.00012266,2]
[323606216,1714108249471,-1355.97,0.00012266,2]
[323606217,1714108249481,-500.0,0.00012266,2]
[323606218,1714108249490,-750.34,0.00012266,2]
[323606219,1714108249500,-500.0,0.00012266,2]
[323606220,1714108249509,-500.0,0.00012266,2]
[323606221,1714108249519,-500.0,0.00012266,2]
[323606222,1714108249530,-584.78,0.00012266,2]
[323606223,1714108249539,-500.0,0.00012266,2]
[323606224,1714108249550,-500.0,0.00012266,2]
[323606225,1714108249560,-500.0,0.00012266,2]
[323606226,1714108249569,-4162.11,0.00012266,2]
[323606227,1714108249579,-500.0,0.00012266,2]
[323606228,1714108249589,-1135.21,0.00012266,2]
[323606229,1714108249599,-850.16,0.00012266,2]
[323606230,1714108249608,-525.76,0.00012266,2]
[323606231,1714108249617,-643.81,0.00012266,2]
[323606232,1714108249626,-587.69,0.00012266,2]
[323606233,1714108249635,-500.0,0.00012266,2]
[323606234,1714108249644,-500.0,0.00012266,2]
[323606235,1714108249654,-500.0,0.00012266,2]
[323606236,1714108249663,-239.00039092,0.00012266,2]
[323606237,1714108249672,-6921.44,0.00012266,2]
[323606238,1714108249681,-2940.68,0.00012266,2]
[323606239,1714108249691,-500.0,0.00012266,2]
[323606240,1714108249700,-500.0,0.00012266,2]
[323606241,1714108249710,-500.0,0.00012266,2]
[323606242,1714108249719,-500.0,0.00012266,2]
[323606243,1714108249728,-500.0,0.00012266,2]
[323606244,1714108249737,-500.0,0.00012266,2]
[323606245,1714108249746,-500.0,0.00012266,2]
[323606246,1714108249757,-500.0,0.00012266,2]
[323606247,1714108249766,-743.09,0.00012266,2]
[323606248,1714108249776,-500.0,0.00012266,2]
[323606249,1714108249786,-500.0,0.00012267,2]
[323606250,1714108249794,-500.0,0.00012267,2]
[323606251,1714108249803,-200.05717459,0.00012267,2]
[323606252,1714108249812,-500.0,0.00012267,2]
[323606253,1714108249821,-500.0,0.00012268,2]
[323606254,1714108249831,-500.0,0.00012268,2]
[323606255,1714108249842,-500.0,0.00012268,2]
[323606256,1714108249852,-500.0,0.00012268,2]
[323606257,1714108249861,-500.0,0.00012268,2]
[323606258,1714108249871,-500.0,0.00012268,2]
[323606259,1714108249880,-500.0,0.00012268,2]
[323606260,1714108249889,-500.0,0.00012268,2]
[323606261,1714108249899,-500.0,0.00012268,2]
[323606262,1714108249908,-546.23,0.00012268,2]
[323606263,1714108249918,-168.11509888,0.00012268,2]
[323606264,1714108249928,-700.0,0.0001227,2]
[323606265,1714108249940,-401.65058613,0.0001227,2]
[323606266,1714108249950,-305.0705,0.000123,2]
[323606267,1714108249959,-584.6757,0.000123,2]
[323606268,1714108249968,-527.0,0.00012301,2]
[323606269,1714108249977,-1155.0,0.00012301,2]
[323606270,1714108249987,-23228.9285932,0.00012319,2]
[323606271,1714108249997,-2688.6936275,0.00012319,2]
[323606272,1714108250005,-186.3039912,0.00012319,2]
[323606273,1714108250015,-497.347529,0.00012319,2]
[323606274,1714108250024,-764.29969933,0.00012319,2]
[323606275,1714108250033,-182.58989164,0.00012327,2]
[323606276,1714108250042,-1114.29634287,0.00012329,2]
[323606277,1714108250053,-4295.68129766,0.00012355,2]
[323606278,1714108250062,-1114.29634287,0.00012384,2]
[323606279,1714108250073,-500.0,0.000124,2]
[323606280,1714108250083,-221.47751285,0.000124,2]
[323606281,1714108250093,-1114.29634287,0.00012411,2]
[323606282,1714108250102,-19414.5862512,0.00012435,2]
[323606283,1714108250111,-2247.1925093,0.00012435,2]
[323606284,1714108250121,-186.3039912,0.00012435,2]
[323606285,1714108250130,-44356.180987,0.00012443,2]
[323606286,1714108250139,-5858.175194,0.00012443,2]
[323606287,1714108250149,-8871.236197,0.00012443,2]
[323606288,1714108250158,-1057.547509,0.00012443,2]
[323606289,1714108250167,-2019.880602,0.00012443,2]
[323606290,1714108250179,-1388.013453,0.00012443,2]
[323606291,1714108250188,-200.0,0.00012443,2]
[323606292,1714108250198,-16693.206178,0.00012443,2]
[323606293,1714108250207,-403.97612,0.00012443,2]
[323606294,1714108250217,-277.60269,0.00012443,2]
[323606295,1714108250226,-2945.882278,0.00012443,2]
[323606296,1714108250236,-376.647785,0.00012443,2]
[323606297,1714108250245,-211.509501,0.00012443,2]
[323606298,1714108250254,-4295.68129766,0.00012445,2]
[323606299,1714108250264,-1114.29634287,0.00012466,2]
[323606300,1714108250273,-700.0,0.0001247,2]
[323606301,1714108250283,-400.0,0.0001247,2]
[323606302,1714108250292,-251.67117492,0.000125,2]
[323606303,1714108250302,-155.0,0.000125,2]
[323606304,1714108250311,-1114.29634287,0.00012521,2]
[323606305,1714108250320,-15600.2439092,0.00012531,2]
[323606306,1714108250329,-1805.6913911,0.00012531,2]
[323606307,1714108250338,-186.3039912,0.00012531,2]
[323606308,1714108250348,-4295.68129766,0.00012536,2]
[323606309,1714108250357,-500.0,0.00012539,2]
[323606310,1714108250366,-500.0,0.00012539,2]
[323606311,1714108250375,-500.0,0.00012539,2]
[323606312,1714108250384,-500.0,0.00012539,2]
[323606313,1714108250393,-500.0,0.00012539,2]
[323606314,1714108250402,-500.0,0.00012539,2]
[323606315,1714108250412,-500.0,0.00012539,2]
[323606316,1714108250421,-511.90576764,0.0001254,2]
[323606317,1714108250430,-500.0,0.0001254,2]
[323606318,1714108250439,-500.0,0.0001254,2]
[323606319,1714108250654,-500.0,0.0001254,2]
[323606320,1714108250665,-500.0,0.0001254,2]
[323606321,1714108250674,-500.0,0.0001254,2]
[323606322,1714108250684,-500.0,0.0001254,2]
[323606323,1714108250694,-500.0,0.0001254,2]
[323606324,1714108250703,-150.0,0.0001254,2]
[323606325,1714108250712,-500.0,0.0001254,2]
[323606326,1714108250722,-163.28658963,0.0001254,2]
[323606327,1714108250732,-500.0,0.0001254,2]
[323606328,1714108250741,-500.0,0.0001254,2]
[323606329,1714108250751,-500.0,0.0001254,2]
[323606330,1714108250761,-500.0,0.0001254,2]
[323606331,1714108250770,-500.0,0.0001254,2]
[323606332,1714108250779,-500.0,0.0001254,2]
[323606333,1714108250789,-500.0,0.0001254,2]
[323606334,1714108250799,-500.0,0.0001254,2]
[323606335,1714108250809,-500.0,0.0001254,2]
[323606336,1714108250819,-500.0,0.0001254,2]
[323606337,1714108250829,-500.0,0.0001254,2]
[323606338,1714108250838,-500.0,0.0001254,2]
[323606339,1714108250847,-234.55092588,0.0001254,2]
[323606340,1714108250856,-500.0,0.0001254,2]
[323606341,1714108250866,-500.0,0.0001254,2]
[323606342,1714108250875,-551.00745214,0.0001254,2]
[323606343,1714108250885,-500.0,0.0001254,2]
[323606344,1714108250895,-786.34,0.0001254,2]
[323606345,1714108250904,-500.0,0.0001254,2]
[323606346,1714108250914,-1220.19,0.0001254,2]
[323606347,1714108250923,-500.0,0.0001254,2]
[323606348,1714108250933,-2652.69,0.0001254,2]
[323606349,1714108250943,-500.0,0.0001254,2]
[323606350,1714108250953,-500.0,0.0001254,2]
[323606351,1714108250963,-500.0,0.0001254,2]
[323606352,1714108250972,-500.0,0.0001254,2]
[323606353,1714108250982,-500.0,0.0001254,2]
[323606354,1714108250991,-500.0,0.0001254,2]
[323606355,1714108251000,-500.0,0.0001254,2]
[323606356,1714108251010,-500.0,0.0001254,2]
[323606357,1714108251019,-550.02,0.0001254,2]
[323606358,1714108251028,-500.0,0.0001254,2]
[323606359,1714108251037,-500.0,0.0001254,2]
[323606360,1714108251047,-500.0,0.0001254,2]
[323606361,1714108251056,-500.0,0.0001254,2]
[323606362,1714108251066,-591.22,0.0001254,2]
[323606363,1714108251075,-624.03,0.0001254,2]
[323606364,1714108251084,-500.0,0.0001254,2]
[323606365,1714108251094,-998.5,0.0001254,2]
[323606366,1714108251103,-500.0,0.0001254,2]
[323606367,1714108251113,-500.0,0.0001254,2]
[323606368,1714108251122,-814.34,0.0001254,2]
[323606369,1714108251131,-557.56,0.0001254,2]
[323606370,1714108251141,-500.0,0.0001254,2]
[323606371,1714108251150,-1794.93,0.0001254,2]
[323606372,1714108251159,-500.0,0.0001254,2]
[323606373,1714108251169,-500.0,0.0001254,2]
[323606374,1714108251180,-1177.13,0.0001254,2]
[323606375,1714108251189,-500.0,0.0001254,2]
[323606376,1714108251198,-1146.54,0.0001254,2]
[323606377,1714108251207,-500.0,0.0001254,2]
[323606378,1714108251217,-1224.49,0.0001254,2]
[323606379,1714108251227,-500.0,0.0001254,2]
[323606380,1714108251236,-517.1,0.0001254,2]
[323606381,1714108251245,-500.0,0.0001254,2]
[323606382,1714108251255,-1494.47,0.0001254,2]
[323606383,1714108251265,-513.98,0.0001254,2]
[323606384,1714108251274,-2667.19,0.0001254,2]
[323606385,1714108251283,-500.0,0.0001254,2]
[323606386,1714108251292,-500.0,0.0001254,2]
[323606387,1714108251302,-500.0,0.0001254,2]
[323606388,1714108251311,-292.31131109,0.0001254,2]
[323606389,1714108251320,-500.0,0.0001254,2]
[323606390,1714108251329,-500.0,0.0001254,2]
[323606391,1714108251338,-533.58,0.0001254,2]
[323606392,1714108251348,-571.03,0.0001254,2]
[323606393,1714108251357,-763.47,0.0001254,2]
[323606394,1714108251366,-1787.95,0.0001254,2]
[323606395,1714108251375,-500.0,0.0001254,2]
[323606396,1714108251385,-607.25122098,0.0001254,2]
[323606397,1714108251394,-554.19747821,0.0001254,2]
[323606398,1714108251403,-1436.42,0.0001254,2]
[323606399,1714108251412,-500.0,0.0001254,2]
[323606400,1714108251421,-1355.97,0.0001254,2]
[323606401,1714108251430,-500.0,0.0001254,2]
[323606402,1714108251440,-750.34,0.0001254,2]
[323606403,1714108251449,-500.0,0.0001254,2]
[323606404,1714108251458,-500.0,0.0001254,2]
[323606405,1714108251467,-500.0,0.0001254,2]
[323606406,1714108251476,-584.78,0.0001254,2]
[323606407,1714108251487,-500.0,0.0001254,2]
[323606408,1714108251496,-500.0,0.0001254,2]
[323606409,1714108251506,-500.0,0.0001254,2]
[323606410,1714108251515,-4162.11,0.0001254,2]
[323606411,1714108251525,-500.0,0.0001254,2]
[323606412,1714108251534,-1135.21,0.0001254,2]
[323606413,1714108251544,-850.16,0.0001254,2]
[323606414,1714108251553,-525.76,0.0001254,2]
[323606415,1714108251562,-643.81,0.0001254,2]
[323606416,1714108251571,-587.69,0.0001254,2]
[323606417,1714108251580,-500.0,0.0001254,2]
[323606418,1714108251589,-500.0,0.0001254,2]
[323606419,1714108251598,-382.83353848,0.0001254,2]
[323606420,1714108251607,-6921.44,0.0001254,2]
[323606421,1714108251618,-2940.68,0.0001254,2]
[323606422,1714108251627,-500.0,0.0001254,2]
[323606423,1714108251636,-500.0,0.0001254,2]
[323606424,1714108251646,-500.0,0.0001254,2]
[323606425,1714108251655,-500.0,0.0001254,2]
[323606426,1714108251665,-500.0,0.0001254,2]
[323606427,1714108251674,-500.0,0.0001254,2]
[323606428,1714108251683,-500.0,0.0001254,2]
[323606429,1714108251692,-500.0,0.0001254,2]
[323606430,1714108251702,-743.09,0.0001254,2]
[323606431,1714108251711,-500.0,0.0001254,2]
[323606432,1714108251721,-500.0,0.00012541,2]
[323606433,1714108251730,-500.0,0.00012541,2]
[323606434,1714108251741,-500.0,0.00012541,2]
[323606435,1714108251750,-500.0,0.00012542,2]
[323606436,1714108251760,-500.0,0.00012542,2]
[323606437,1714108251769,-500.0,0.00012542,2]
[323606438,1714108251778,-500.0,0.00012542,2]
[323606439,1714108251788,-500.0,0.00012542,2]
[323606440,1714108251797,-500.0,0.00012542,2]
[323606441,1714108251806,-500.0,0.00012542,2]
[323606442,1714108251815,-500.0,0.00012542,2]
[323606443,1714108251824,-500.0,0.00012542,2]
[323606444,1714108251833,-546.23,0.00012542,2]
[323606445,1714108251842,-166.99,0.00012544,2]
[323606446,1714108251851,-700.0,0.0001257,2]
[323606447,1714108251860,-400.0,0.0001257,2]
[323606448,1714108251870,-1114.29634287,0.00012575,2]
[323606449,1714108251879,-1259.50385619,0.00012601,2]
[323606450,1714108251889,-316.44060217,0.00012601,2]
[323606451,1714108251898,-4295.68129766,0.00012627,2]
[323606452,1714108251907,-1114.29634287,0.0001263,2]
[323606453,1714108251916,-221.47751285,0.0001265,2]
[323606454,1714108251925,-500.0,0.00012675,2]
[323606455,1714108251934,-500.0,0.00012684,2]
[323606456,1714108251943,-1114.29634287,0.00012685,2]
[323606457,1714108251952,-500.0,0.00012693,2]
[323606458,1714108251961,-500.0,0.00012701,2]
[323606459,1714108251970,-500.0,0.00012705,2]
[323606460,1714108251979,-500.0,0.0001271,2]
[323606461,1714108251991,-500.0,0.00012714,2]
[323606462,1714108251999,-500.0,0.00012716,2]
[323606463,1714108252008,-500.0,0.00012717,2]
[323606464,1714108252017,-4295.68129766,0.00012718,2]
[323606465,1714108252026,-500.0,0.00012719,2]
[323606466,1714108252036,-500.0,0.00012723,2]
[323606467,1714108252046,-500.0,0.00012726,2]
[323606468,1714108252056,-500.0,0.00012732,2]
[323606469,1714108252066,-500.0,0.00012734,2]
[323606470,1714108252075,-1114.29634287,0.0001274,2]
[323606471,1714108252084,-500.0,0.00012741,2]
[323606472,1714108252093,-500.0,0.00012743,2]
[323606473,1714108252103,-500.0,0.00012744,2]
[323606474,1714108252112,-500.0,0.00012752,2]
[323606475,1714108252121,-500.0,0.00012753,2]
[323606476,1714108252131,-1114.29634287,0.00012767,2]
[323606477,1714108252141,-193.042612,0.00012797,3]
[323606478,1714108252149,-157.042612,0.00012798,3]
[323606479,1714108252159,-199.042612,0.00012798,3]
[323606480,1714108252168,-449.01235933,0.000128,2]
[323606481,1714108252181,-11785.9015673,0.00012805,2]
[323606482,1714108252190,-1364.190273,0.00012805,2]
[323606483,1714108252199,-186.3039912,0.00012805,2]
[323606484,1714108252208,-4295.68129766,0.00012809,2]
[323606485,1714108252217,-500.0,0.00012813,2]
[323606486,1714108252226,-500.0,0.00012813,2]
[323606487,1714108252237,-500.0,0.00012813,2]
[323606488,1714108252246,-500.0,0.00012813,2]
[323606489,1714108252255,-500.0,0.00012813,2]
[323606490,1714108252264,-500.0,0.00012813,2]
[323606491,1714108252273,-620.81962909,0.00012813,2]
[323606492,1714108252282,-500.0,0.00012814,2]
[323606493,1714108252291,-500.0,0.00012814,2]
[323606494,1714108252299,-500.0,0.00012814,2]
[323606495,1714108252309,-500.0,0.00012814,2]
[323606496,1714108252318,-500.0,0.00012814,2]
[323606497,1714108252327,-500.0,0.00012814,2]
[323606498,1714108252336,-500.0,0.00012814,2]
[323606499,1714108252345,-150.0,0.00012814,2]
[323606500,1714108252354,-500.0,0.00012814,2]
[323606501,1714108252363,-500.0,0.00012814,2]
[323606502,1714108252372,-500.0,0.00012814,2]
[323606503,1714108252381,-500.0,0.00012814,2]
[323606504,1714108252390,-500.0,0.00012814,2]
[323606505,1714108252399,-500.0,0.00012814,2]
[323606506,1714108252409,-500.0,0.00012814,2]
[323606507,1714108252418,-500.0,0.00012814,2]
[323606508,1714108252428,-500.0,0.00012814,2]
[323606509,1714108252437,-500.0,0.00012814,2]
[323606510,1714108252446,-500.0,0.00012814,2]
[323606511,1714108252455,-500.0,0.00012814,2]
[323606512,1714108252464,-500.0,0.00012814,2]
[323606513,1714108252473,-500.0,0.00012814,2]
[323606514,1714108252482,-487.51437671,0.00012814,2]
[323606515,1714108252492,-500.0,0.00012814,2]
[323606516,1714108252501,-786.34,0.00012814,2]
[323606517,1714108252510,-500.0,0.00012814,2]
[323606518,1714108252520,-1220.19,0.00012814,2]
[323606519,1714108252529,-500.0,0.00012814,2]
[323606520,1714108252538,-2652.69,0.00012814,2]
[323606521,1714108252547,-500.0,0.00012814,2]
[323606522,1714108252556,-500.0,0.00012814,2]
[323606523,1714108252566,-500.0,0.00012814,2]
[323606524,1714108252575,-500.0,0.00012814,2]
[323606525,1714108252584,-239.11356031,0.00012814,2]
[323606526,1714108252593,-500.0,0.00012814,2]
[323606527,1714108252602,-500.0,0.00012814,2]
[323606528,1714108252611,-500.0,0.00012814,2]
[323606529,1714108252621,-550.02,0.00012814,2]
[323606530,1714108252630,-500.0,0.00012814,2]
[323606531,1714108252640,-500.0,0.00012814,2]
[323606532,1714108252650,-500.0,0.00012814,2]
[323606533,1714108252660,-500.0,0.00012814,2]
[323606534,1714108252669,-591.22,0.00012814,2]
[323606535,1714108252679,-624.03,0.00012814,2]
[323606536,1714108252688,-500.0,0.00012814,2]
[323606537,1714108252698,-998.5,0.00012814,2]
[323606538,1714108252707,-500.0,0.00012814,2]
[323606539,1714108252717,-500.0,0.00012814,2]
[323606540,1714108252726,-814.34,0.00012814,2]
[323606541,1714108252736,-557.56,0.00012814,2]
[323606542,1714108252746,-500.0,0.00012814,2]
[323606543,1714108252755,-1794.93,0.00012814,2]
[323606544,1714108252765,-500.0,0.00012814,2]
[323606545,1714108252774,-500.0,0.00012814,2]
[323606546,1714108252783,-1177.13,0.00012814,2]
[323606547,1714108252792,-500.0,0.00012814,2]
[323606548,1714108252802,-1146.54,0.00012814,2]
[323606549,1714108252811,-500.0,0.00012814,2]
[323606550,1714108252821,-1224.49,0.00012814,2]
[323606551,1714108252831,-500.0,0.00012814,2]
[323606552,1714108252841,-517.1,0.00012814,2]
[323606553,1714108252852,-500.0,0.00012814,2]
[323606554,1714108252862,-1494.47,0.00012814,2]
[323606555,1714108252871,-513.98,0.00012814,2]
[323606556,1714108252880,-2667.19,0.00012814,2]
[323606557,1714108252888,-500.0,0.00012814,2]
[323606558,1714108252897,-500.0,0.00012814,2]
[323606559,1714108252906,-500.0,0.00012814,2]
[323606560,1714108252915,-500.0,0.00012814,2]
[323606561,1714108252924,-500.0,0.00012814,2]
[323606562,1714108252933,-533.58,0.00012814,2]
[323606563,1714108252942,-571.03,0.00012814,2]
[323606564,1714108252952,-763.47,0.00012814,2]
[323606565,1714108252961,-1787.95,0.00012814,2]
[323606566,1714108252971,-500.0,0.00012814,2]
[323606567,1714108252981,-1436.42,0.00012814,2]
[323606568,1714108252990,-263.82082395,0.00012814,2]
[323606569,1714108252999,-1355.97,0.00012814,2]
[323606570,1714108253008,-500.0,0.00012814,2]
[323606571,1714108253017,-750.34,0.00012814,2]
[323606572,1714108253026,-500.0,0.00012814,2]
[323606573,1714108253035,-500.0,0.00012814,2]
[323606574,1714108253047,-500.0,0.00012814,2]
[323606575,1714108253056,-584.78,0.00012814,2]
[323606576,1714108253065,-500.0,0.00012814,2]
[323606577,1714108253075,-500.0,0.00012814,2]
[323606578,1714108253085,-500.0,0.00012814,2]
[323606579,1714108253096,-4162.11,0.00012814,2]
[323606580,1714108253105,-540.84712275,0.00012814,2]
[323606581,1714108253115,-1135.21,0.00012814,2]
[323606582,1714108253124,-850.16,0.00012814,2]
[323606583,1714108253133,-525.76,0.00012814,2]
[323606584,1714108253143,-643.81,0.00012814,2]
[323606585,1714108253152,-587.69,0.00012814,2]
[323606586,1714108253162,-500.0,0.00012814,2]
[323606587,1714108253173,-500.0,0.00012814,2]
[323606588,1714108253184,-6921.44,0.00012814,2]
[323606589,1714108253194,-2940.68,0.00012814,2]
[323606590,1714108253203,-500.0,0.00012814,2]
[323606591,1714108253212,-500.0,0.00012814,2]
[323606592,1714108253221,-500.0,0.00012814,2]
[323606593,1714108253230,-500.0,0.00012814,2]
[323606594,1714108253240,-500.0,0.00012814,2]
[323606595,1714108253252,-500.0,0.00012814,2]
[323606596,1714108253261,-500.0,0.00012814,2]
[323606597,1714108253270,-500.0,0.00012814,2]
[323606598,1714108253278,-500.0,0.00012814,2]
[323606599,1714108253288,-743.09,0.00012814,2]
[323606600,1714108253297,-359.33639681,0.00012815,2]
[323606601,1714108253306,-500.0,0.00012815,2]
[323606602,1714108253315,-500.0,0.00012815,2]
[323606603,1714108253325,-500.0,0.00012816,2]
[323606604,1714108253337,-500.0,0.00012816,2]
[323606605,1714108253349,-500.0,0.00012816,2]
[323606606,1714108253359,-500.0,0.00012816,2]
[323606607,1714108253368,-500.0,0.00012816,2]
[323606608,1714108253377,-500.0,0.00012816,2]
[323606609,1714108253386,-500.0,0.00012816,2]
[323606610,1714108253396,-500.0,0.00012816,2]
[323606611,1714108253406,-500.0,0.00012816,2]
[323606612,1714108253417,-546.23,0.00012816,2]
[323606613,1714108253426,-1114.29634287,0.00012822,2]
[323606614,1714108253435,-207.64707866,0.00012872,2]
[323606615,1714108253444,-3011.53415278,0.00012872,2]
[323606616,1714108253453,-1735.51311535,0.00012872,2]
[323606617,1714108253462,-23024.42742938,0.00012873,2]
[323606618,1714108253471,-412.75193205,0.00012873,2]
[323606619,1714108253480,-180.82927282,0.00012873,2]
[323606620,1714108253489,-303.54140214,0.00012873,2]
[323606621,1714108253499,-1804.55761812,0.00012873,2]
[323606622,1714108253509,-631.86019631,0.00012887,2]
[323606623,1714108253519,-412.75193204,0.00012887,2]
[323606624,1714108253528,-303.54140214,0.00012887,2]
[323606625,1714108253538,-155.0,0.000129,2]
[323606626,1714108253547,-499.44422683,0.000129,2]
[323606627,1714108253557,-221.47751285,0.000129,2]
[323606628,1714108253566,-4295.68129766,0.000129,2]
[323606629,1714108253575,-631.86019631,0.000129,2]
[323606630,1714108253584,-412.75193204,0.000129,2]
[323606631,1714108253593,-303.54140214,0.000129,2]
[323606632,1714108253604,-299.12,0.00012921,2]
[323606633,1714108253614,-7971.5592253,0.0001293,2]
[323606634,1714108253623,-4157.2168833,0.0001293,2]
[323606635,1714108253633,-922.6891548,0.0001293,2]
[323606636,1714108253643,-481.1880366,0.0001293,2]
[323606637,1714108253653,-186.3039912,0.0001293,2]
[323606638,1714108253662,-186.3039912,0.0001293,2]
[323606639,1714108253672,-120622.18620794,0.00012939,2]
[323606640,1714108254504,-500.0,0.00011444,2]
[323606641,1714108254514,-500.0,0.00011718,2]
[323606642,1714108254524,-272.68873682,0.0001199,2]
[323606643,1714108254533,-236.60615508,0.0001199,2]
[323606644,1714108254542,-500.0,0.00011992,2]
[323606645,1714108254552,-500.0,0.00012266,2]
[323606646,1714108254561,-500.0,0.0001254,2]
[323606647,1714108254570,-500.0,0.00012814,2]
[323606648,1714108254579,-1804.55761812,0.00012887,2]
[323606649,1714108254590,-28247.14748998,0.00012939,2]
[323606650,1714108254608,-492.40673128,0.00012939,2]
[323606651,1714108254631,-6327.01232262,0.00012939,2]
[323606652,1714108254643,-1526.62194422,0.00012939,2]
[323606653,1714108254655,-1680.91055578,0.00012939,2]
[323606654,1714108254666,-822.68632659,0.00012939,2]
[323606655,1714108254680,-956.67600003,0.00012939,2]
[323606656,1714108260611,-3509.2948919,0.00011398,7]
[323606657,1714108282578,247525.96899573,0.00025,120]
[323606658,1714108282604,1771538.1899481,0.00025,120]
[323606659,1714108282631,403633.32331901,0.00025,120]
[323606660,1714108282655,610000.0,0.00025,120]
[323606661,1714108282702,967302.51773716,0.00025,120]
[323606662,1714108285168,-150.0,0.00011345,2]
[323606663,1714108285336,-150.0,0.00011345,2]
[323606664,1714108285408,-150.0,0.00011345,2]
[323606665,1714108285574,-150.0,0.00011345,2]
[323606666,1714108285623,-150.0,0.00011345,2]
[323606667,1714108285671,-150.0,0.00011345,2]
[323606668,1714108285716,-150.0,0.00011345,2]
[323606669,1714108285778,-150.0,0.00011345,2]
[323606670,1714108285826,-150.0,0.00011345,2]
[323606671,1714108285875,-150.0,0.00011345,2]
[323606672,1714108285932,-150.33002036,0.00011345,2]
[323606673,1714108286000,-150.0,0.00011345,2]
[323606674,1714108286053,-150.0,0.00011345,2]
[323606675,1714108286109,-150.0,0.00011345,2]
[323606676,1714108296734,-5399.66997964,0.00011345,2]
[323606677,1714108299987,481.1701,0.00011246,2]
[323606678,1714108327266,-179.71486377,0.00011398,2]
[323606679,1714108327291,-5494.38534021,0.00011398,7]
[323606680,1714108341435,-179.71486377,0.00011398,7]
[323606681,1714108349586,179.71486377,0.00011246,2]
[323606682,1714108365618,233.28581144,0.00011246,2]
[323606683,1714108396838,1006.15924515,0.00011344,2]
[323606685,1714108677295,-274.84,9e-05,2]
[323606688,1714109185996,-404.8762609,8.875e-05,2]
[323606689,1714109187635,236.60615508,8.874e-05,2]
[323606690,1714109209132,-162.14721555,8.875e-05,2]
[323606691,1714109239861,-348.50825523,8.875e-05,2]
[323606705,1714109432304,-21.61873026,8.875e-05,2]
[323606707,1714109432313,-261.09,8.876e-05,2]
[323606708,1714109432322,-935.94,9.884e-05,2]
[323606709,1714109432332,-171.09,0.00010694,2]
[323606710,1714109432342,-1535.00132598,0.00010775,2]
[323606711,1714109432353,-684.71908266,0.00010775,2]
[323606712,1714109432377,-956.84004214,0.00010775,2]
[323606713,1714109432386,-213.94,0.00010784,2]
[323606714,1714109432395,-200.0,0.00011,2]
[323606715,1714109432404,-261.09,0.0001114,2]
[323606716,1714109432414,-150.0,0.00011243,2]
[323606717,1714109432423,-21065.8455,0.00011244,2]
[323606718,1714109432432,-112.78446786,0.00011244,2]
[323606719,1714109432678,-1647.10744656,0.00011244,2]
[323606720,1714109432690,-365.88388558,0.00011244,2]
[323606721,1714109432700,-2500.0,0.00011244,2]
[323606722,1714109432709,-531.7411,0.00011246,2]
[323606723,1714109432718,-445.42,0.00011246,2]
[323606724,1714109432727,-390.79,0.0001127,2]
[323606725,1714109432736,-813.29,0.00011334,2]
[323606726,1714109432747,-425.0886962,0.00011342,2]
[323606727,1714109432756,-344.59991659,0.00011342,2]
[323606728,1714109432766,-211.49137003,0.00011342,2]
[323606729,1714109432775,-500.0,0.00011343,2]
[323606730,1714109432785,-500.0,0.00011343,2]
[323606732,1714109432794,-503.37421597,0.00011343,2]